[Event "ESCC-50 2022"]
[Site "Lublin"]
[Date "2022.07.10"]
[Round "6.4"]
[White "Pietinen, Pekka"]
[Black "Lasinskas, Povilas"]
[Result "0-1"]
[ECO "C44"]
[WhiteElo "1937"]
[BlackElo "2096"]
[Annotator "NA RC"]
[PlyCount "64"]
[EventDate "2022.07.05"]
[EventType "swiss"]
[EventCountry "POL"]
[SourceTitle "playchess.com"]
[Source "ChessBase"]
[SourceQuality "1"]
[TimeControl "40/5400+30:1800+30"]

1. e4 {[%emt 0:00:10]} e5 {[%emt 0:00:04]} 2. Nf3 {[%emt 0:00:17]} Nc6 {[%emt 0:00:05]} 3. c3 {[%emt 0:00:16]} d5 {[%emt 0:00:12]} 4. Qa4 {[%emt 0:00:53]} Qd6 {[%emt 0:00:05]} 5. Bb5 {[%emt 0:03:01]} Bd7 {[%emt 0:00:19]} 6. exd5 {[%emt 0:03:02]} Qxd5 {[%emt 0:00:05]} 7. O-O {[%emt 0:00:24]} O-O-O {[%emt 0:00:25]} 8. Qc4 {[%emt 0:09:05]} Qd6 {[%emt 0:02:14]} 9. d4 {[%emt 0:02:26]} exd4 {[%emt 0:06:35]} 10. cxd4 {[%emt 0:04:07]} Be6 {[%emt 0:01:34]} 11. Qc5 {[%emt 0:00:54]} Nxd4 {[%emt 0:00:53]} 12. Qxa7 {[%emt 0:01:34]} Nxb5 {[%emt 0:02:04]} 13. Qa8+ {[%emt 0:00:20]} Kd7 {[%emt 0:00:07]} 14. Qxb7 {[%emt 0:00:07]} Qb6 {[%emt 0:02:52]} 15. Qe4 {[%emt 0:03:09]} Nf6 {[%emt 0:00:32]} 16. Qa4 {[%emt 0:00:16]} Bd6 {[%emt 0:01:59]} 17. Be3 {[%emt 0:01:05]} Qb7 {[%emt 0:01:38]} 18. Nd4 {[%emt 0:05:34]} c6 {[%emt 0:01:42]} 19. Nxe6 {[%emt 0:00:28]} fxe6 {[%emt 0:00:36]} 20. Nd2 {[%emt 0:00:12]} Ke7 {[%emt 0:01:18]} 21. Rfe1 {[%emt 0:02:31]} Kf7 {[%emt 0:00:59]} 22. Nf3 {[%emt 0:02:08]} h6 {[%emt 0:05:40]} 23. Qc4 {[%emt 0:03:49]} Nc7 {[%emt 0:02:02]} 24. Qc2 {[%emt 0:00:28]} Ncd5 {[%emt 0:00:27]} 25. Bd4 {[%emt 0:00:53]} Rhe8 {[%emt 0:02:04]} 26. Rac1 {[%emt 0:02:48]} c5 {[%emt 0:02:53]} 27. Be5 {[%emt 0:01:29]} Bxe5 {[%emt 0:01:35]} 28. Nxe5+ {[%emt 0:00:14]} Kg8 {[%emt 0:00:04]} 29. b3 $19 {[%emt 0:07:21]} Nb4 {[%emt 0:08:47]} 30. Qg6 {[%emt 0:02:50]} Nxa2 {[%emt 0:05:42]} 31. Rxc5 {[%emt 0:00:39]} Qb4 {[%emt 0:03:39]} 32. Rc7 {[%emt 0:00:37]} Qxe1# 0-1

[Event "ESCC-50 2022"]
[Site "Lublin"]
[Date "2022.07.10"]
[Round "6.5"]
[White "Kirszenberg, Marc"]
[Black "Lilja, Richard"]
[Result "0-1"]
[ECO "A40"]
[WhiteElo "2056"]
[BlackElo "2131"]
[Annotator "RC"]
[PlyCount "38"]
[EventDate "2022.07.05"]
[EventType "swiss"]
[EventCountry "POL"]
[SourceTitle "playchess.com"]
[Source "ChessBase"]
[SourceQuality "1"]
[TimeControl "40/5400+30:1800+30"]

1. d4 {[%emt 0:00:05]} b6 {[%emt 0:05:57]} 2. Nf3 {[%emt 0:00:19]} Bb7 {[%emt 0:00:22]} 3. Bf4 {[%emt 0:00:07]} e6 {[%emt 0:00:19]} 4. e3 {[%emt 0:00:19]} f5 {[%emt 0:00:24]} 5. Be2 {[%emt 0:00:11]} Nf6 {[%emt 0:00:33]} 6. h3 {[%emt 0:00:08]} Bd6 {[%emt 0:02:50]} 7. Bxd6 {[%emt 0:00:59]} cxd6 {[%emt 0:00:27]} 8. O-O {[%emt 0:00:10]} O-O {[%emt 0:00:29]} 9. Nbd2 {[%emt 0:02:25]} Ne4 {[%emt 0:11:03]} 10. Nxe4 {[%emt 0:00:10]} fxe4 {[%emt 0:00:08]} 11. Nd2 {[%emt 0:00:50]} Qg5 {[%emt 0:00:50]} 12. Bc4 {[%emt 0:03:00]} d5 {[%emt 0:06:46]} 13. Be2 {[%emt 0:03:25]} Nc6 {[%emt 0:01:02]} 14. c3 {[%emt 0:03:34]} Rf6 {[%emt 0:01:23]} 15. Kh1 {[%emt 0:01:23]} Ne7 {[%emt 0:03:51]} 16. Qe1 {[%emt 0:03:55]} Nf5 {[%emt 0:02:43]} 17. Bg4 {[%emt 0:01:34]} Ba6 {[%emt 0:13:17]} 18. Rg1 {[%emt 0:05:47]} Raf8 {[%emt 0:01:51]} 19. f4 {[%emt 0:01:25]} Qxg4 {[%emt 0:02:21]} 0-1

[Event "ESCC-50 2022"]
[Site "Lublin"]
[Date "2022.07.10"]
[Round "6.6"]
[White "Padrak, Rafal"]
[Black "Chwalewski, Marek"]
[Result "1-0"]
[ECO "D31"]
[WhiteElo "2125"]
[BlackElo "1774"]
[Annotator "NA RC"]
[PlyCount "112"]
[EventDate "2022.07.05"]
[EventType "swiss"]
[EventCountry "POL"]
[SourceTitle "playchess.com"]
[Source "ChessBase"]
[SourceQuality "1"]
[TimeControl "40/5400+30:1800+30"]

1. d4 {[%emt 0:00:03]} d5 {[%emt 0:00:37]} 2. c4 {[%emt 0:00:08]} e6 {[%emt 0:00:43]} 3. Nc3 {[%emt 0:00:16]} c6 {[%emt 0:00:39]} 4. Nf3 {[%emt 0:00:22]} Bb4 {[%emt 0:00:20]} 5. Qb3 {[%emt 0:00:57]} Qa5 {[%emt 0:01:39]} 6. e3 {[%emt 0:00:51]} Nf6 {[%emt 0:01:58]} 7. Nd2 {[%emt 0:00:41]} Nbd7 {[%emt 0:06:51]} 8. Be2 {[%emt 0:04:20]} h5 {[%emt 0:11:38]} 9. O-O {[%emt 0:06:55]} Bxc3 {[%emt 0:07:03]} (9... O-O $14) 10. bxc3 {[%emt 0:00:39]} e5 {[%emt 0:00:09]} 11. cxd5 {[%emt 0:01:15]} Nxd5 {[%emt 0:00:34]} 12. e4 {[%emt 0:05:42]} Nf4 {[%emt 0:05:43]} 13. Bc4 {[%emt 0:00:37]} O-O {[%emt 0:02:27] [#]} 14. Nf3 $1 {[%emt 0:04:56]} Qc7 $18 {[%emt 0:09:12]} 15. a4 {[%emt 0:18:28]} exd4 {[%emt 0:03:49]} 16. cxd4 {[%emt 0:00:07]} Nb6 {[%emt 0:00:09]} 17. Ne5 {[%emt 0:16:09]} Nxc4 {[%emt 0:01:17]} 18. Bxf4 {[%emt 0:01:38]} Nxe5 {[%emt 0:00:16]} 19. Bxe5 Qe7 {[%emt 0:01:46]} 20. Qg3 {[%emt 0:01:00]} g6 {[%emt 0:06:37]} 21. Bd6 {[%emt 0:00:51]} Qxe4 {[%emt 0:00:21]} 22. Bxf8 {[%emt 0:00:06]} Kxf8 {[%emt 0:00:30]} 23. Rfe1 {[%emt 0:02:24]} Qd5 {[%emt 0:02:22]} 24. Qa3+ {[%emt 0:08:41]} Kg7 {[%emt 0:01:27]} 25. Re5 {[%emt 0:00:13]} Qd8 {[%emt 0:02:15]} 26. Qb2 {[%emt 0:02:26]} Qf6 {[%emt 0:16:38]} 27. Re8 {[%emt 0:05:17]} b6 {[%emt 0:00:58]} 28. a5 {[%emt 0:00:59]} b5 {[%emt 0:03:24]} 29. Qb4 {[%emt 0:00:34]} Kh6 {[%emt 0:01:50]} 30. Qf8+ {[%emt 0:00:48]} Qg7 {[%emt 0:00:09]} 31. Qxg7+ {[%emt 0:07:26]} Kxg7 {[%emt 0:00:06]} 32. a6 {[%emt 0:00:29]} b4 {[%emt 0:00:38]} 33. Rb1 {[%emt 0:01:29]} Rb8 {[%emt 0:00:07]} 34. f3 {[%emt 0:01:26]} b3 {[%emt 0:01:13]} 35. Kf2 {[%emt 0:01:03]} f5 {[%emt 0:00:37]} 36. Ke3 {[%emt 0:01:59]} Kf7 {[%emt 0:00:22]} 37. Rh8 {[%emt 0:00:08]} g5 {[%emt 0:01:36]} 38. f4 {[%emt 0:01:21]} gxf4+ {[%emt 0:00:48]} 39. Kxf4 {[%emt 0:00:05]} Ke6 {[%emt 0:00:09]} 40. Rd8 {[%emt 0:00:00]} b2 {[%emt 0:00:00]} 41. h4 {[%emt 0:09:04]} c5 {[%emt 0:03:30]} 42. dxc5 {[%emt 0:13:41]} Ke7 {[%emt 0:03:41]} 43. Rd2 {[%emt 0:01:01]} Rb4+ {[%emt 0:03:42]} 44. Kg5 Rg4+ {[%emt 0:06:26]} 45. Kh6 {[%emt 0:02:48]} Be6 {[%emt 0:09:04]} 46. Rbxb2 {[%emt 0:00:47]} Kf6 {[%emt 0:00:19]} 47. Rb7 {[%emt 0:01:58]} f4 {[%emt 0:04:19]} 48. Rxa7 {[%emt 0:01:21]} Rg6+ 49. Kh7 Bg8+ {[%emt 0:03:16]} 50. Kh8 {[%emt 0:00:48]} Be6 {[%emt 0:00:23]} 51. Rd6 {[%emt 0:01:35]} Rxg2 {[%emt 0:01:31]} 52. Ra8 {[%emt 0:00:48]} Kf7 {[%emt 0:01:23]} 53. Rb8 {[%emt 0:01:08]} Rg6 {[%emt 0:01:03]} 54. Rb7+ {[%emt 0:01:16]} Kf6 {[%emt 0:00:15]} 55. Rxe6+ {[%emt 0:01:51]} Kxe6 {[%emt 0:00:07]} 56. a7 {[%emt 0:00:04]} Kd5 1-0

[Event "ESCC-50 2022"]
[Site "Lublin"]
[Date "2022.07.10"]
[Round "6.8"]
[White "Zielinski, Olgierd"]
[Black "Krzyzanowska-Zadlo, Lidia"]
[Result "1-0"]
[ECO "B40"]
[WhiteElo "1816"]
[BlackElo "1732"]
[Annotator "NA COMBH"]
[PlyCount "61"]
[EventDate "2022.07.05"]
[EventType "swiss"]
[EventCountry "POL"]
[SourceTitle "playchess.com"]
[Source "ChessBase"]
[SourceQuality "1"]
[TimeControl "40/5400+30:1800+30"]

1. e4 {[%emt 0:00:05]} c5 {[%emt 0:00:07]} 2. Nf3 {[%emt 0:00:12]} e6 {[%emt 0:00:15]} 3. d4 {[%emt 0:00:14]} cxd4 {[%emt 0:00:44]} 4. Nxd4 {[%emt 0:00:12]} Nf6 {[%emt 0:00:37]} 5. Nc3 {[%emt 0:00:42]} Bb4 {[%emt 0:00:53]} 6. Bd3 {[%emt 0:06:55]} Nc6 {[%emt 0:03:00]} 7. Nxc6 {[%emt 0:01:03]} bxc6 {[%emt 0:01:28]} 8. O-O {[%emt 0:00:10]} d5 {[%emt 0:04:23]} 9. e5 {[%emt 0:01:02]} Nd7 {[%emt 0:00:31]} 10. Qg4 {[%emt 0:00:10]} Bf8 {[%emt 0:01:42]} 11. Qg3 {[%emt 0:09:33]} Qc7 {[%emt 0:02:53]} 12. f4 {[%emt 0:07:23]} g6 {[%emt 0:05:32]} 13. Kh1 {[%emt 0:01:58]} Nc5 {[%emt 0:20:33]} 14. Nd1 {[%emt 0:31:52]} a5 {[%emt 0:12:39]} 15. b3 {[%emt 0:00:56]} a4 {[%emt 0:08:34]} 16. Bb2 {[%emt 0:07:37]} axb3 {[%emt 0:00:40]} 17. axb3 {[%emt 0:00:21]} Rxa1 {[%emt 0:01:34]} 18. Bxa1 {[%emt 0:00:05]} Nxd3 {[%emt 0:04:34]} 19. Qxd3 {[%emt 0:00:28]} Qa7 {[%emt 0:02:04]} 20. Ne3 {[%emt 0:10:45]} Ba6 {[%emt 0:05:12]} 21. c4 {[%emt 0:00:15]} Bc5 {[%emt 0:01:00]} 22. Ng4 {[%emt 0:00:07]} dxc4 {[%emt 0:03:41]} 23. bxc4 {[%emt 0:02:58]} Ke7 {[%emt 0:05:35]} 24. Rd1 {[%emt 0:00:37]} Qc7 {[%emt 0:02:26]} 25. Bd4 {[%emt 0:01:46]} Bxd4 {[%emt 0:01:09]} 26. Qxd4 {[%emt 0:00:11]} c5 {[%emt 0:01:23]} 27. Qd6+ {[%emt 0:00:27]} Qxd6 {[%emt 0:00:28]} 28. exd6+ {[%emt 0:00:05]} Kd7 {[%emt 0:01:27]} 29. Ne5+ {[%emt 0:00:07]} Kc8 {[%emt 0:00:34]} 30. d7+ {[%emt 0:00:18]} Kc7 {[%emt 0:00:21]} 31. Nxf7 {[%emt 0:00:19]} 1-0

[Event "ESCC-50 2022"]
[Site "Lublin"]
[Date "2022.07.10"]
[Round "6.9"]
[White "Puroila, Sippo"]
[Black "Krzyzanowski, Wojciech"]
[Result "1-0"]
[ECO "A16"]
[WhiteElo "1803"]
[BlackElo "1878"]
[Annotator "NA RC"]
[PlyCount "61"]
[EventDate "2022.07.05"]
[EventType "swiss"]
[EventCountry "POL"]
[SourceTitle "playchess.com"]
[Source "ChessBase"]
[SourceQuality "1"]
[TimeControl "40/5400+30:1800+30"]

1. c4 {[%emt 0:00:08]} Nf6 {[%emt 0:00:10]} 2. Nc3 {[%emt 0:00:10]} e5 {[%emt 0:00:07]} 3. e4 {[%emt 0:00:07]} Nc6 {[%emt 0:00:11]} 4. g3 {[%emt 0:00:14]} Bc5 {[%emt 0:00:50]} 5. Bg2 {[%emt 0:00:12]} d6 {[%emt 0:00:08]} 6. h3 O-O {[%emt 0:00:40]} 7. Nge2 {[%emt 0:00:19]} a6 {[%emt 0:04:30]} 8. O-O {[%emt 0:00:13]} Be6 {[%emt 0:01:30]} 9. d3 {[%emt 0:00:08]} h6 {[%emt 0:00:33]} 10. Kh2 {[%emt 0:00:17]} Nh7 {[%emt 0:00:31]} 11. f4 f5 {[%emt 0:03:44]} 12. b3 {[%emt 0:01:30]} Rb8 {[%emt 0:06:26]} 13. Rb1 {[%emt 0:01:14]} Qd7 {[%emt 0:04:03]} 14. Bb2 {[%emt 0:13:31]} Nd4 {[%emt 0:04:19]} 15. Na4 {[%emt 0:04:31]} Ba7 {[%emt 0:02:42]} 16. Bxd4 {[%emt 0:02:14]} exd4 {[%emt 0:01:02]} 17. Qd2 {[%emt 0:00:37]} c5 {[%emt 0:05:04]} 18. Nb2 {[%emt 0:02:54]} Bb6 {[%emt 0:06:07]} 19. Rbe1 {[%emt 0:04:59]} h5 {[%emt 0:08:22]} 20. Ng1 {[%emt 0:01:56]} Rbe8 {[%emt 0:08:28]} 21. Qd1 {[%emt 0:00:38]} Ba5 {[%emt 0:03:53]} 22. Re2 {[%emt 0:00:03]} g6 {[%emt 0:08:14]} 23. Nf3 {[%emt 0:04:01]} Bd8 {[%emt 0:03:50]} 24. Qd2 {[%emt 0:03:00]} Qg7 {[%emt 0:02:54]} 25. Rfe1 {[%emt 0:00:39]} fxe4 {[%emt 0:00:24]} 26. dxe4 {[%emt 0:00:56]} Qh6 {[%emt 0:03:19]} 27. Nd3 {[%emt 0:00:40]} b5 {[%emt 0:03:26]} 28. e5 {[%emt 0:02:32]} bxc4 {[%emt 0:00:09]} 29. exd6 {[%emt 0:01:25]} cxd3 {[%emt 0:00:12]} 30. Rxe6 {[%emt 0:00:10]} Rxe6 {[%emt 0:02:23]} 31. Rxe6 {[%emt 0:00:03]} 1-0

[Event "ESCC-50 2022"]
[Site "Lublin"]
[Date "2022.07.10"]
[Round "6.10"]
[White "Chlewinski, Artur"]
[Black "Leszner, Liliana"]
[Result "0-1"]
[ECO "B06"]
[WhiteElo "1417"]
[BlackElo "1872"]
[Annotator "NA COMBH"]
[PlyCount "76"]
[EventDate "2022.07.05"]
[EventType "swiss"]
[EventCountry "POL"]
[SourceTitle "playchess.com"]
[Source "ChessBase"]
[SourceQuality "1"]
[TimeControl "40/5400+30:1800+30"]

1. e4 {[%emt 0:00:03]} g6 {[%emt 0:00:05]} 2. d4 {[%emt 0:01:04]} Bg7 {[%emt 0:00:07]} 3. Be3 {[%emt 0:01:00]} c6 {[%emt 0:01:36]} 4. c3 {[%emt 0:04:33]} d6 {[%emt 0:01:53]} 5. Qd2 {[%emt 0:03:51]} Nf6 {[%emt 0:01:23]} 6. f3 {[%emt 0:01:50]} h5 {[%emt 0:02:59]} 7. Bd3 {[%emt 0:03:12]} Nbd7 {[%emt 0:01:05]} 8. Ne2 {[%emt 0:02:38]} e5 {[%emt 0:00:50]} 9. O-O {[%emt 0:00:46]} h4 {[%emt 0:02:50]} 10. a4 {[%emt 0:03:14]} Nf8 {[%emt 0:04:57]} 11. c4 {[%emt 0:04:00]} Ne6 {[%emt 0:08:23]} 12. Nbc3 {[%emt 0:03:37]} Nh5 {[%emt 0:05:46]} 13. f4 {[%emt 0:02:51]} exf4 {[%emt 0:01:10]} 14. Nxf4 {[%emt 0:04:48]} Nhxf4 {[%emt 0:00:16]} 15. Bxf4 {[%emt 0:00:40]} Bxd4+ {[%emt 0:00:50]} 16. Kh1 {[%emt 0:00:39]} Nxf4 {[%emt 0:00:52]} 17. Qxf4 {[%emt 0:00:29]} Be6 {[%emt 0:00:20]} 18. a5 {[%emt 0:01:59]} Be5 {[%emt 0:00:21]} 19. Qd2 {[%emt 0:03:27]} Kf8 {[%emt 0:02:04]} 20. Be2 {[%emt 0:01:00]} Kg7 {[%emt 0:00:20]} 21. b4 {[%emt 0:12:47]} Qd7 {[%emt 0:03:55]} 22. Rad1 {[%emt 0:04:51]} Qe7 {[%emt 0:02:41]} 23. b5 {[%emt 0:06:18]} Rac8 {[%emt 0:05:37]} 24. bxc6 {[%emt 0:04:01]} bxc6 {[%emt 0:00:15]} 25. Rb1 {[%emt 0:00:34]} Rb8 {[%emt 0:00:39]} 26. Na2 {[%emt 0:01:44]} Rhd8 {[%emt 0:03:23]} 27. Rb4 {[%emt 0:10:40]} c5 {[%emt 0:03:14]} 28. Rbb1 {[%emt 0:00:45]} Qc7 {[%emt 0:02:04]} 29. Bd3 {[%emt 0:05:57]} Bd4 {[%emt 0:04:45]} 30. Rb5 {[%emt 0:03:30]} a6 {[%emt 0:02:31]} 31. Rb6 {[%emt 0:02:04]} Rxb6 {[%emt 0:00:50]} 32. axb6 {[%emt 0:00:02]} Qxb6 {[%emt 0:00:10]} 33. Rb1 {[%emt 0:00:08]} Qc7 {[%emt 0:00:56]} 34. Nc1 {[%emt 0:03:30]} Rb8 {[%emt 0:01:47]} 35. Nb3 {[%emt 0:03:22]} Be5 {[%emt 0:01:36]} 36. Qc1 {[%emt 0:01:17]} Qe7 {[%emt 0:02:18]} 37. Qa3 {[%emt 0:00:48]} Qg5 {[%emt 0:01:36]} 38. Kg1 {[%emt 0:00:54]} Qe3+ {[%emt 0:00:14]} 0-1

[Event "ESCC-50 2022"]
[Site "Lublin"]
[Date "2022.07.11"]
[Round "7.1"]
[White "Mrva, Martin"]
[Black "Garabetyan, Arno"]
[Result "1/2-1/2"]
[ECO "B47"]
[WhiteElo "2385"]
[BlackElo "2056"]
[Annotator "ChessBase"]
[PlyCount "105"]
[EventDate "2022.07.05"]
[EventType "swiss"]
[EventCountry "POL"]
[SourceTitle "playchess.com"]
[Source "ChessBase"]
[SourceQuality "1"]
[TimeControl "40/5400+30:1800+30"]

1. e4 {[%emt 0:00:04]} c5 {[%emt 0:00:05]} 2. Nf3 {[%emt 0:00:08]} e6 {[%emt 0:00:08]} 3. Nc3 {[%emt 0:00:06]} Nc6 {[%emt 0:00:11]} 4. d4 {[%emt 0:01:44]} cxd4 {[%emt 0:00:05]} 5. Nxd4 {[%emt 0:00:03]} Qc7 {[%emt 0:00:10]} 6. g3 {[%emt 0:02:38]} a6 {[%emt 0:01:01]} 7. Bg2 {[%emt 0:00:42]} Nf6 {[%emt 0:00:29]} 8. O-O {[%emt 0:00:26]} Nxd4 {[%emt 0:00:11]} 9. Qxd4 {[%emt 0:00:07]} Bc5 {[%emt 0:00:07]} 10. Qd2 {[%emt 0:16:03]} O-O {[%emt 0:02:05]} 11. b3 {[%emt 0:01:51]} e5 {[%emt 0:04:10]} 12. Na4 {[%emt 0:06:28]} d6 {[%emt 0:00:13]} 13. Qc3 {[%emt 0:08:26]} Be6 {[%emt 0:14:28]} 14. Nxc5 {[%emt 0:01:02]} dxc5 {[%emt 0:00:54]} 15. f4 {[%emt 0:02:15]} Rfe8 {[%emt 0:05:34]} 16. Bb2 {[%emt 0:01:42]} Rad8 {[%emt 0:05:03]} 17. fxe5 {[%emt 0:03:25]} Nd7 {[%emt 0:00:34]} 18. Rad1 {[%emt 0:00:18]} b5 {[%emt 0:00:20]} 19. Rd6 {[%emt 0:03:05]} b4 {[%emt 0:03:57]} 20. Qd2 {[%emt 0:00:15]} a5 {[%emt 0:01:59]} 21. Qg5 {[%emt 0:05:26]} h6 {[%emt 0:12:21]} 22. Qh4 {[%emt 0:08:44]} Nf8 {[%emt 0:03:49]} 23. Rfd1 {[%emt 0:01:37]} Rb8 {[%emt 0:00:14]} 24. Bf1 {[%emt 0:03:40]} c4 {[%emt 0:01:45]} 25. Qh5 {[%emt 0:01:20]} cxb3 {[%emt 0:02:12]} 26. cxb3 {[%emt 0:00:07]} Qc2 {[%emt 0:00:18]} 27. Qe2 {[%emt 0:00:30]} Rec8 {[%emt 0:01:21]} 28. R1d2 {[%emt 0:00:31]} Qb1 {[%emt 0:02:32]} 29. Bd4 {[%emt 0:03:32]} Bh3 {[%emt 0:06:18]} 30. Rd1 {[%emt 0:04:50]} Bxf1 {[%emt 0:04:02]} 31. Kxf1 {[%emt 0:02:22]} Rc1 {[%emt 0:00:58]} 32. Bf2 {[%emt 0:01:19]} Rbc8 {[%emt 0:00:26]} 33. Kg2 {[%emt 0:01:43]} R8c2 {[%emt 0:02:52]} 34. Qf3 {[%emt 0:08:33]} Rxd1 {[%emt 0:09:39]} 35. Rxd1 {[%emt 0:01:01]} Qb2 {[%emt 0:00:12]} 36. Rd5 {[%emt 0:01:34]} a4 {[%emt 0:02:35]} 37. Rb5 {[%emt 0:02:20]} Qxa2 {[%emt 0:08:12]} 38. e6 {[%emt 0:04:50]} Nxe6 {[%emt 0:00:45]} 39. Rb7 {[%emt 0:00:27]} Nd8 {[%emt 0:00:49]} 40. Rb8 {[%emt 0:00:00]} Rd2 {[%emt 0:00:00]} 41. bxa4 {[%emt 0:06:18]} b3 {[%emt 0:03:30]} 42. Qe3 {[%emt 0:05:31]} Qc2 {[%emt 0:00:56]} 43. Qb6 {[%emt 0:09:30]} Qxe4+ {[%emt 0:02:28]} 44. Kh3 {[%emt 0:00:06]} b2 {[%emt 0:01:12]} 45. Qa5 {[%emt 0:01:35]} Rxf2 {[%emt 0:05:45]} 46. Qxd8+ {[%emt 0:00:15]} Kh7 {[%emt 0:00:06]} 47. Qg8+ {[%emt 0:00:21]} Kg6 {[%emt 0:00:05]} 48. Rb6+ {[%emt 0:00:28]} f6 {[%emt 0:00:08]} 49. Qc8 {[%emt 0:02:35]} Qg2+ {[%emt 0:00:46]} 50. Kh4 {[%emt 0:00:06]} Qxh2+ {[%emt 0:00:09]} 51. Qh3 {[%emt 0:00:06]} Qg1 {[%emt 0:01:51]} 52. Rxb2 {[%emt 0:00:22]} Rxb2 {[%emt 0:01:12]} 53. Qg4+ {[%emt 0:00:10]} 1/2-1/2

[Event "ESCC-50 2022"]
[Site "Lublin"]
[Date "2022.07.11"]
[Round "7.2"]
[White "Druckenthaner, Andreas"]
[Black "Klimaszewski, Dariusz"]
[Result "1/2-1/2"]
[ECO "B33"]
[WhiteElo "2272"]
[BlackElo "2152"]
[Annotator "ChessBase"]
[PlyCount "83"]
[EventDate "2022.07.05"]
[EventType "swiss"]
[EventCountry "POL"]
[SourceTitle "playchess.com"]
[Source "ChessBase"]
[SourceQuality "1"]
[TimeControl "40/5400+30:1800+30"]

1. e4 {[%emt 0:00:05]} c5 {[%emt 0:00:10]} 2. Nf3 {[%emt 0:00:13]} Nc6 {[%emt 0:00:09]} 3. Nc3 {[%emt 0:00:17]} e6 {[%emt 0:00:26]} 4. d4 {[%emt 0:00:23]} cxd4 {[%emt 0:00:09]} 5. Nxd4 {[%emt 0:00:08]} Nf6 {[%emt 0:00:07]} 6. Ndb5 {[%emt 0:00:54]} d6 {[%emt 0:00:09]} 7. Bf4 {[%emt 0:00:15]} e5 {[%emt 0:00:06]} 8. Bg5 {[%emt 0:00:09]} a6 {[%emt 0:00:06]} 9. Na3 {[%emt 0:00:07]} b5 {[%emt 0:00:05]} 10. Nd5 {[%emt 0:00:12]} Be7 {[%emt 0:00:09]} 11. Bxf6 {[%emt 0:00:16]} Bxf6 {[%emt 0:00:07]} 12. g3 {[%emt 0:00:36]} Ne7 {[%emt 0:03:06]} 13. Nxf6+ {[%emt 0:01:17]} gxf6 {[%emt 0:00:10]} 14. Bg2 {[%emt 0:00:21]} Bb7 {[%emt 0:01:28]} 15. O-O {[%emt 0:00:23]} f5 {[%emt 0:01:53]} 16. exf5 {[%emt 0:09:45]} Bxg2 {[%emt 0:02:06]} 17. Kxg2 {[%emt 0:00:07]} Nxf5 {[%emt 0:01:08]} 18. Qf3 {[%emt 0:06:39]} Qc8 {[%emt 0:04:01]} 19. c3 {[%emt 0:10:39]} Rg8 {[%emt 0:01:52]} 20. Kh1 {[%emt 0:03:39]} Rb8 {[%emt 0:00:45]} 21. Nc2 {[%emt 0:01:47]} a5 {[%emt 0:07:37]} 22. Ne3 {[%emt 0:08:47]} Nxe3 {[%emt 0:01:35]} 23. fxe3 {[%emt 0:00:17]} Qb7 {[%emt 0:00:31]} 24. e4 {[%emt 0:00:50]} Rg6 {[%emt 0:00:28]} 25. Rad1 {[%emt 0:07:22]} Rc8 {[%emt 0:03:14]} 26. Rd5 {[%emt 0:03:21]} Rc6 {[%emt 0:14:29]} 27. a4 {[%emt 0:07:51]} bxa4 {[%emt 0:04:34]} 28. Rxa5 {[%emt 0:00:40]} Kf8 {[%emt 0:01:54]} 29. Rxa4 {[%emt 0:02:22]} Rb6 {[%emt 0:02:31]} 30. b4 {[%emt 0:03:47]} d5 {[%emt 0:00:55]} 31. Qe3 {[%emt 0:07:29]} Rgf6 {[%emt 0:10:17]} 32. Rfa1 {[%emt 0:07:18]} dxe4 {[%emt 0:04:13]} 33. Ra8+ {[%emt 0:01:36]} Kg7 {[%emt 0:00:10]} 34. Qg5+ {[%emt 0:00:08]} Rg6 {[%emt 0:00:36]} 35. Qxe5+ {[%emt 0:00:09]} Rbf6 {[%emt 0:01:56]} 36. R8a7 {[%emt 0:08:14]} Qc8 {[%emt 0:02:28]} 37. Rf1 {[%emt 0:03:34]} Qc4 {[%emt 0:02:58]} 38. Rxf6 {[%emt 0:01:38]} Rxf6 {[%emt 0:00:10]} 39. Qg5+ {[%emt 0:00:34]} Rg6 {[%emt 0:00:11]} 40. Qe5+ {[%emt 0:00:00]} Rf6 {[%emt 0:00:00]} 41. Qg5+ {[%emt 0:09:24]} Rg6 {[%emt 0:01:10]} 42. Qe5+ {[%emt 0:06:17]} 1/2-1/2

[Event "ESCC-50 2022"]
[Site "Lublin"]
[Date "2022.07.11"]
[Round "7.3"]
[White "Lilja, Richard"]
[Black "Tereladze, Sopiko"]
[Result "0-1"]
[ECO "A01"]
[WhiteElo "2131"]
[BlackElo "2141"]
[Annotator "ChessBase"]
[PlyCount "82"]
[EventDate "2022.07.05"]
[EventType "swiss"]
[EventCountry "POL"]
[SourceTitle "playchess.com"]
[Source "ChessBase"]
[SourceQuality "1"]
[TimeControl "40/5400+30:1800+30"]

1. b3 {[%emt 0:00:04]} e5 {[%emt 0:00:20]} 2. Bb2 {[%emt 0:00:08]} Nc6 {[%emt 0:00:25]} 3. c4 {[%emt 0:02:38]} Nf6 {[%emt 0:00:35]} 4. Nc3 {[%emt 0:00:31]} d5 {[%emt 0:01:14]} 5. cxd5 {[%emt 0:02:50]} Nxd5 {[%emt 0:00:01]} 6. e3 {[%emt 0:05:19]} Be6 {[%emt 0:04:42]} 7. Nxd5 {[%emt 0:06:23]} Qxd5 {[%emt 0:03:17]} 8. Nf3 {[%emt 0:00:31]} e4 {[%emt 0:02:14]} 9. Bc4 {[%emt 0:07:28]} Qd6 {[%emt 0:07:15]} 10. Bxe6 {[%emt 0:01:14]} exf3 {[%emt 0:04:18]} 11. Bh3 {[%emt 0:00:39]} fxg2 {[%emt 0:04:03]} 12. Bxg2 {[%emt 0:00:08]} Rd8 {[%emt 0:06:10]} 13. d4 {[%emt 0:13:22]} Qh6 {[%emt 0:03:54]} 14. a3 {[%emt 0:02:00]} Bd6 {[%emt 0:01:19]} 15. Bxc6+ {[%emt 0:04:58]} bxc6 {[%emt 0:00:05]} 16. Qf3 {[%emt 0:04:57]} O-O {[%emt 0:00:09]} 17. O-O-O {[%emt 0:00:06]} Qe6 {[%emt 0:04:00]} 18. e4 {[%emt 0:01:30]} f5 {[%emt 0:00:27]} 19. e5 {[%emt 0:06:03]} Be7 {[%emt 0:01:40]} 20. Rhg1 {[%emt 0:00:07]} Rd5 {[%emt 0:02:59]} 21. Rd3 {[%emt 0:05:07]} Rb8 {[%emt 0:02:19]} 22. Qh5 {[%emt 0:05:23]} Qf7 {[%emt 0:11:44]} 23. Qh6 {[%emt 0:03:50]} g6 {[%emt 0:03:05]} 24. Rh3 {[%emt 0:05:47]} Qg7 {[%emt 0:06:03]} 25. Qd2 {[%emt 0:04:15]} Qf8 {[%emt 0:16:23]} 26. Qc2 {[%emt 0:03:39]} Rb6 {[%emt 0:02:06]} 27. Rhg3 {[%emt 0:01:28]} Kh8 {[%emt 0:05:01]} 28. Qe2 {[%emt 0:04:02]} Qh6+ {[%emt 0:04:38]} 29. Kb1 {[%emt 0:00:43]} Kg7 {[%emt 0:01:14]} 30. Qd3 {[%emt 0:01:46]} Qf4 {[%emt 0:01:19]} 31. Ka2 {[%emt 0:01:57]} Rdb5 {[%emt 0:00:59]} 32. Qc4 {[%emt 0:01:53]} Rd5 {[%emt 0:00:45]} 33. Qe2 {[%emt 0:00:24]} a5 {[%emt 0:01:28]} 34. Rd3 {[%emt 0:01:15]} Qxh2 {[%emt 0:00:36]} 35. Qf1 {[%emt 0:00:25]} Qf4 {[%emt 0:00:26]} 36. Bc1 {[%emt 0:01:16]} Qe4 {[%emt 0:00:38]} 37. Bb2 {[%emt 0:00:28]} Rdb5 {[%emt 0:00:05]} 38. f3 {[%emt 0:00:37]} Qd5 {[%emt 0:00:00]} 39. Qd1 {[%emt 0:01:22]} Rxb3 {[%emt 0:00:23]} 40. Rxb3 {[%emt 0:00:00]} a4 {[%emt 0:00:00]} 41. Qd3 {[%emt 0:03:42]} Rxb3 {[%emt 0:00:32]} 0-1